fUSD/lending_fUSD_20240523
["ID","MTS","AMOUNT","RATE_DAILY","PERIOD"]
[327755407,1716432663990,-500.0,0.00023287,2]
[327755408,1716432664000,-500.0,0.00023287,2]
[327755409,1716432664009,-500.0,0.00023287,2]
[327755410,1716432664021,-262.56,0.00023287,2]
[327755411,1716432664031,-500.0,0.00023287,2]
[327755412,1716432664040,-500.0,0.00023287,2]
[327755413,1716432664050,-500.0,0.00023287,2]
[327755414,1716432664060,-500.0,0.00023287,2]
[327755415,1716432664069,-500.0,0.00023287,2]
[327755416,1716432664079,-500.0,0.00023287,2]
[327755417,1716432664088,-500.0,0.00023287,2]
[327755418,1716432664098,-500.0,0.00023287,2]
[327755419,1716432664107,-500.0,0.00023287,2]
[327755420,1716432664117,-500.0,0.00023287,2]
[327755421,1716432664128,-500.0,0.00023287,2]
[327755422,1716432664138,-500.0,0.00023287,2]
[327755423,1716432664148,-500.0,0.00023287,2]
[327755424,1716432664159,-500.0,0.00023287,2]
[327755425,1716432664170,-269.98924095,0.00023287,2]
[327755426,1716432664180,-500.0,0.00023287,2]
[327755427,1716432664189,-500.0,0.00023287,2]
[327755428,1716432664199,-500.0,0.00023287,2]
[327755429,1716432664209,-500.0,0.00023287,2]
[327755430,1716432664219,-500.0,0.00023287,2]
[327755431,1716432664230,-637.51335997,0.00023287,2]
[327755432,1716432664240,-500.0,0.00023287,2]
[327755433,1716432664250,-500.0,0.00023287,2]
[327755434,1716432664260,-500.0,0.00023287,2]
[327755435,1716432664271,-927.84,0.00023287,2]
[327755436,1716432664281,-642.52,0.00023287,2]
[327755437,1716432664290,-500.0,0.00023287,2]
[327755438,1716432664299,-817.98,0.00023287,2]
[327755439,1716432664309,-500.0,0.00023287,2]
[327755440,1716432664318,-420.71930049,0.00023287,2]
[327755441,1716432664329,-500.0,0.00023287,2]
[327755442,1716432664341,-500.0,0.00023287,2]
[327755443,1716432664350,-552.1,0.00023287,2]
[327755444,1716432664359,-1577.19,0.00023287,2]
[327755445,1716432664369,-500.0,0.00023287,2]
[327755446,1716432664378,-440.12093452,0.00023287,2]
[327755447,1716432664388,-500.0,0.00023287,2]
[327755448,1716432664398,-500.0,0.00023287,2]
[327755449,1716432664407,-1189.63,0.00023287,2]
[327755450,1716432664416,-706.04,0.00023287,2]
[327755451,1716432664426,-500.0,0.00023287,2]
[327755452,1716432664435,-1375.34,0.00023287,2]
[327755453,1716432664444,-681.11,0.00023287,2]
[327755454,1716432664454,-500.0,0.00023287,2]
[327755455,1716432664464,-2368.11,0.00023287,2]
[327755456,1716432664473,-500.0,0.00023287,2]
[327755457,1716432664483,-545.65,0.00023287,2]
[327755458,1716432664492,-553.59,0.00023287,2]
[327755459,1716432664503,-500.0,0.00023287,2]
[327755460,1716432664513,-500.0,0.00023287,2]
[327755461,1716432664526,-850.66,0.00023287,2]
[327755462,1716432664536,-603.91,0.00023287,2]
[327755463,1716432664546,-1474.23,0.00023287,2]
[327755464,1716432664556,-500.0,0.00023287,2]
[327755465,1716432664566,-9892.35,0.00023287,2]
[327755466,1716432664576,-631.25,0.00023287,2]
[327755467,1716432664585,-1819.25,0.00023287,2]
[327755468,1716432664599,-523.41589238,0.00023287,2]
[327755469,1716432664609,-500.0,0.00023287,2]
[327755470,1716432664619,-500.0,0.00023287,2]
[327755471,1716432664628,-510.74,0.00023287,2]
[327755472,1716432664638,-500.0,0.00023287,2]
[327755473,1716432664648,-500.0,0.00023287,2]
[327755474,1716432664657,-500.0,0.00023287,2]
[327755475,1716432664667,-500.0,0.00023287,2]
[327755476,1716432664676,-507.14,0.00023287,2]
[327755477,1716432664687,-755.13,0.00023287,2]
[327755478,1716432664696,-3419.56,0.00023287,2]
[327755479,1716432664706,-500.0,0.00023287,2]
[327755480,1716432664716,-644.53,0.00023287,2]
[327755481,1716432664725,-500.0,0.00023287,2]
[327755482,1716432664735,-618.49,0.00023287,2]
[327755483,1716432664744,-209.82752262,0.00023287,2]
[327755484,1716432664754,-639.58,0.00023287,2]
[327755485,1716432664766,-5605.18,0.00023287,2]
[327755486,1716432664776,-500.0,0.00023287,2]
[327755487,1716432664785,-3848.47,0.00023287,2]
[327755488,1716432664794,-500.0,0.00023287,2]
[327755489,1716432664804,-317.77724832,0.00023287,2]
[327755490,1716432664814,-500.0,0.00023287,2]
[327755491,1716432664823,-245.45707645,0.00023287,2]
[327755492,1716432664833,-500.0,0.00023287,2]
[327755493,1716432664842,-500.0,0.00023287,2]
[327755494,1716432664852,-972.37,0.00023287,2]
[327755495,1716432664862,-500.0,0.00023287,2]
[327755496,1716432664871,-552.38,0.00023287,2]
[327755497,1716432664881,-500.0,0.00023287,2]
[327755498,1716432664891,-705.43,0.00023287,2]
[327755499,1716432664900,-4365.07,0.00023287,2]
[327755500,1716432664909,-500.0,0.00023287,2]
[327755501,1716432664919,-500.0,0.00023287,2]
[327755502,1716432664929,-1949.72,0.00023287,2]
[327755503,1716432664939,-569.91496822,0.00023287,2]
[327755504,1716432664948,-500.0,0.00023287,2]
[327755505,1716432664958,-500.0,0.00023287,2]
[327755506,1716432664967,-500.0,0.00023287,2]
[327755507,1716432664977,-500.0,0.00023287,2]
[327755508,1716432664986,-836.28,0.00023287,2]
[327755509,1716432664996,-1217.93,0.00023287,2]
[327755510,1716432665006,-500.0,0.00023287,2]
[327755511,1716432665017,-500.0,0.00023287,2]
[327755512,1716432665026,-500.0,0.00023287,2]
[327755513,1716432665036,-651.01,0.00023287,2]
[327755514,1716432665045,-500.0,0.00023287,2]
[327755515,1716432665055,-500.0,0.00023287,2]
[327755516,1716432665064,-818.52,0.00023287,2]
[327755517,1716432665074,-500.0,0.00023287,2]
[327755518,1716432665083,-500.0,0.00023287,2]
[327755519,1716432665093,-500.0,0.00023287,2]
[327755520,1716432665103,-860.87,0.00023287,2]
[327755521,1716432665113,-500.0,0.00023287,2]
[327755522,1716432665122,-1049.77,0.00023287,2]
[327755523,1716432665132,-667.48,0.00023287,2]
[327755524,1716432665142,-500.0,0.00023287,2]
[327755525,1716432665152,-858.38,0.00023287,2]
[327755526,1716432665162,-500.0,0.00023287,2]
[327755527,1716432665172,-514.79664004,0.00023287,2]
[327755528,1716432665182,-259.61654385,0.00023287,2]
[327755529,1716432665192,-569.63,0.00023287,2]
[327755530,1716432665202,-500.0,0.00023287,2]
[327755531,1716432665212,-500.0,0.00023287,2]
[327755532,1716432665223,-500.0,0.00023287,2]
[327755533,1716432665233,-668.87,0.00023287,2]
[327755534,1716432665243,-1035.81,0.00023287,2]
[327755535,1716432665253,-1426.39,0.00023287,2]
[327755536,1716432665266,-991.74,0.00023287,2]
[327755537,1716432665276,-500.0,0.00023287,2]
[327755538,1716432665286,-500.0,0.00023287,2]
[327755539,1716432665295,-1283.32,0.00023287,2]
[327755540,1716432665305,-500.0,0.00023287,2]
[327755541,1716432665315,-500.0,0.00023287,2]
[327755542,1716432665553,-500.0,0.00023287,2]
[327755543,1716432665563,-2650.38,0.00023287,2]
[327755544,1716432665572,-719.97,0.00023287,2]
[327755545,1716432665582,-410.93632568,0.00023287,2]
[327755546,1716432665591,-3769.04,0.00023287,2]
[327755547,1716432665600,-796.14,0.00023287,2]
[327755548,1716432665611,-500.0,0.00023287,2]
[327755549,1716432665621,-500.0,0.00023287,2]
[327755550,1716432665631,-606.35,0.00023287,2]
[327755551,1716432665640,-657.85,0.00023287,2]
[327755552,1716432665649,-500.0,0.00023287,2]
[327755553,1716432665659,-1868.32,0.00023287,2]
[327755554,1716432665668,-667.33,0.00023287,2]
[327755555,1716432665677,-550.28,0.00023287,2]
[327755556,1716432665687,-508.08,0.00023287,2]
[327755557,1716432665697,-500.0,0.00023287,2]
[327755558,1716432665706,-500.0,0.00023287,2]
[327755559,1716432665716,-1164.2,0.00023287,2]
[327755560,1716432665725,-500.0,0.00023287,2]
[327755561,1716432665734,-705.51,0.00023287,2]
[327755562,1716432665744,-500.0,0.00023287,2]
[327755563,1716432665753,-500.0,0.00023287,2]
[327755564,1716432665763,-500.0,0.00023287,2]
[327755565,1716432665773,-512.21,0.00023287,2]
[327755566,1716432665782,-500.0,0.00023287,2]
[327755567,1716432665791,-2362.28,0.00023287,2]
[327755568,1716432665800,-500.0,0.00023287,2]
[327755569,1716432665810,-500.0,0.00023287,2]
[327755570,1716432665819,-776.78,0.00023287,2]
[327755571,1716432665829,-500.0,0.00023287,2]
[327755572,1716432665839,-794.05,0.00023287,2]
[327755573,1716432665848,-216.88371626,0.00023287,2]
[327755574,1716432665859,-509.63,0.00023287,2]
[327755575,1716432665869,-500.0,0.00023287,2]
[327755576,1716432665878,-521.29,0.00023287,2]
[327755577,1716432665887,-809.18,0.00023287,2]
[327755578,1716432665897,-1435.08,0.00023287,2]
[327755579,1716432665907,-625.57,0.00023287,2]
[327755580,1716432665917,-734.15,0.00023287,2]
[327755581,1716432665926,-1174.34,0.00023287,2]
[327755582,1716432665935,-652.81,0.00023287,2]
[327755583,1716432665947,-747.59,0.00023287,2]
[327755584,1716432665957,-500.0,0.00023287,2]
[327755585,1716432665967,-500.0,0.00023287,2]
[327755586,1716432665976,-585.21,0.00023287,2]
[327755587,1716432665985,-500.0,0.00023287,2]
[327755588,1716432665994,-3383.27,0.00023287,2]
[327755589,1716432666004,-500.0,0.00023287,2]
[327755590,1716432666015,-891.97,0.00023287,2]
[327755591,1716432666024,-809.95,0.00023287,2]
[327755592,1716432666033,-792.86,0.00023287,2]
[327755593,1716432666042,-227.0,0.0002331,2]
[327755594,1716432666052,-263.35,0.00023314,2]
[327755595,1716432666061,-524.28,0.00023314,2]
[327755596,1716432666070,-524.28,0.00023314,2]
[327755597,1716432666080,-524.28,0.00023314,2]
[327755598,1716432666089,-158.97861239,0.00023327,2]
[327755599,1716432666099,-153.22353761,0.00023328,2]
[327755600,1716432666108,-166.0,0.0002334,2]
[327755601,1716432666118,-420.93,0.00023349,2]
[327755602,1716432666127,-154.03112156,0.00023375,2]
[327755603,1716432666137,-3848.02904647,0.000234,2]
[327755604,1716432666146,-154.99328839,0.00023405,2]
[327755605,1716432666155,-167.0,0.00023414,2]
[327755606,1716432666164,-156.74272551,0.00023421,2]
[327755607,1716432666173,-167.99941386,0.00023431,2]
[327755608,1716432666183,-420.93,0.00023443,2]
[327755609,1716432666192,-420.93,0.00023443,2]
[327755610,1716432666201,-420.93,0.00023443,2]
[327755611,1716432666211,-420.93,0.00023443,2]
[327755612,1716432666220,-420.93,0.00023443,2]
[327755613,1716432666230,-420.93,0.00023443,2]
[327755614,1716432666239,-420.93,0.00023443,2]
[327755615,1716432666249,-150.0,0.00023443,2]
[327755616,1716432666258,-155.21231935,0.00023448,2]
[327755617,1716432666270,-232.45250762,0.0002347,2]
[327755618,1716432666279,-392.0,0.0002348,2]
[327755619,1716432666289,-2100.0,0.00023498,2]
[327755620,1716432666299,-300.575,0.00023498,2]
[327755621,1716432666308,-333.49233576,0.00023499,2]
[327755622,1716432666318,-1000.0,0.000235,2]
[327755623,1716432666327,-150.0,0.000235,3]
[327755624,1716432666337,-643.71230742,0.00023538,2]
[327755625,1716432666346,-232.99639557,0.00023549,2]
[327755626,1716432666355,-182.95330127,0.00023558,2]
[327755627,1716432666364,-500.0,0.00023561,2]
[327755628,1716432666374,-500.0,0.00023561,2]
[327755629,1716432666383,-500.0,0.00023561,2]
[327755630,1716432666393,-500.0,0.00023561,2]
[327755631,1716432666402,-1288.33,0.00023561,2]
[327755632,1716432666411,-500.0,0.00023561,2]
[327755633,1716432666421,-500.0,0.00023561,2]
[327755634,1716432666431,-500.0,0.00023561,2]
[327755635,1716432666440,-1232.58,0.00023561,2]
[327755636,1716432666450,-708.02,0.00023561,2]
[327755637,1716432666459,-1941.35,0.00023561,2]
[327755638,1716432666468,-578.8,0.00023561,2]
[327755639,1716432666478,-500.0,0.00023561,2]
[327755640,1716432666488,-500.0,0.00023561,2]
[327755641,1716432666498,-549.84,0.00023561,2]
[327755642,1716432666508,-500.0,0.00023561,2]
[327755643,1716432666526,-500.0,0.00023561,2]
[327755644,1716432666536,-1949.84,0.00023561,2]
[327755645,1716432666546,-854.74,0.00023561,2]
[327755646,1716432666555,-500.0,0.00023561,2]
[327755647,1716432666567,-683.02,0.00023561,2]
[327755648,1716432666576,-1713.52,0.00023561,2]
[327755649,1716432666586,-361.48881201,0.00023561,2]
[327755650,1716432666598,-740.18,0.00023561,2]
[327755651,1716432666608,-479.88120003,0.00023561,2]
[327755652,1716432666619,-791.87,0.00023561,2]
[327755653,1716432666629,-512.39,0.00023561,2]
[327755654,1716432666639,-500.0,0.00023561,2]
[327755655,1716432666650,-500.0,0.00023561,2]
[327755656,1716432666661,-500.0,0.00023561,2]
[327755657,1716432666670,-500.0,0.00023561,2]
[327755658,1716432666680,-500.0,0.00023561,2]
[327755659,1716432666690,-500.0,0.00023561,2]
[327755660,1716432666700,-393.59021994,0.00023561,2]
[327755661,1716432666711,-559.16,0.00023561,2]
[327755662,1716432666721,-500.0,0.00023561,2]
[327755663,1716432666731,-500.0,0.00023561,2]
[327755664,1716432666741,-500.0,0.00023561,2]
[327755665,1716432666751,-500.0,0.00023561,2]
[327755666,1716432666762,-500.0,0.00023561,2]
[327755667,1716432666777,-500.0,0.00023561,2]
[327755668,1716432666787,-500.0,0.00023561,2]
[327755669,1716432666796,-500.0,0.00023561,2]
[327755670,1716432666806,-636.15,0.00023561,2]
[327755671,1716432666816,-881.15,0.00023561,2]
[327755672,1716432666826,-922.68,0.00023561,2]
[327755673,1716432666835,-3262.56,0.00023561,2]
[327755674,1716432666845,-788.42,0.00023561,2]
[327755675,1716432666855,-589.99,0.00023561,2]
[327755676,1716432666865,-500.0,0.00023561,2]
[327755677,1716432666874,-500.0,0.00023561,2]
[327755678,1716432666884,-500.0,0.00023561,2]
[327755679,1716432666894,-500.0,0.00023561,2]
[327755680,1716432666904,-500.0,0.00023561,2]
[327755681,1716432666914,-500.0,0.00023561,2]
[327755682,1716432666924,-500.0,0.00023561,2]
[327755683,1716432666934,-500.0,0.00023561,2]
[327755684,1716432666944,-500.0,0.00023561,2]
[327755685,1716432666953,-207.79779145,0.00023561,2]
[327755686,1716432666963,-500.0,0.00023561,2]
[327755687,1716432666972,-500.0,0.00023561,2]
[327755688,1716432666982,-500.0,0.00023561,2]
[327755689,1716432666992,-500.0,0.00023561,2]
[327755690,1716432667002,-500.0,0.00023561,2]
[327755691,1716432667015,-500.0,0.00023561,2]
[327755692,1716432667024,-500.0,0.00023561,2]
[327755693,1716432667034,-500.0,0.00023561,2]
[327755694,1716432667043,-663.29,0.00023561,2]
[327755695,1716432667053,-500.0,0.00023561,2]
[327755696,1716432667063,-827.51,0.00023561,2]
[327755697,1716432667072,-654.97,0.00023561,2]
[327755698,1716432667083,-500.0,0.00023561,2]
[327755699,1716432667093,-500.0,0.00023561,2]
[327755700,1716432667104,-500.0,0.00023561,2]
[327755701,1716432667114,-641.52,0.00023561,2]
[327755702,1716432667123,-500.0,0.00023561,2]
[327755703,1716432667133,-500.0,0.00023561,2]
[327755704,1716432667142,-500.0,0.00023561,2]
[327755705,1716432667152,-660.72,0.00023561,2]
[327755706,1716432667161,-579.29,0.00023561,2]
[327755707,1716432667171,-342.07105909,0.00023561,2]
[327755708,1716432667181,-590.2,0.00023561,2]
[327755709,1716432667190,-500.0,0.00023561,2]
[327755710,1716432667200,-500.0,0.00023561,2]
[327755711,1716432667209,-1606.22,0.00023561,2]
[327755712,1716432667219,-500.0,0.00023561,2]
[327755713,1716432667228,-500.0,0.00023561,2]
[327755714,1716432667238,-500.0,0.00023561,2]
[327755715,1716432667247,-500.0,0.00023561,2]
[327755716,1716432667257,-500.0,0.00023561,2]
[327755717,1716432667269,-500.0,0.00023561,2]
[327755718,1716432667279,-593.42149187,0.00023561,2]
[327755719,1716432667288,-500.0,0.00023561,2]
[327755720,1716432667297,-500.0,0.00023561,2]
[327755721,1716432667306,-500.0,0.00023561,2]
[327755722,1716432667315,-500.0,0.00023561,2]
[327755723,1716432667324,-500.0,0.00023561,2]
[327755724,1716432667334,-500.0,0.00023561,2]
[327755725,1716432667344,-500.0,0.00023561,2]
[327755726,1716432667353,-500.0,0.00023561,2]
[327755727,1716432667363,-500.0,0.00023561,2]
[327755728,1716432667372,-500.0,0.00023561,2]
[327755729,1716432667382,-500.0,0.00023561,2]
[327755730,1716432667391,-500.0,0.00023561,2]
[327755731,1716432667401,-500.0,0.00023561,2]
[327755732,1716432667410,-500.0,0.00023561,2]
[327755733,1716432667420,-500.0,0.00023561,2]
[327755734,1716432667429,-500.0,0.00023561,2]
[327755735,1716432667439,-500.0,0.00023561,2]
[327755736,1716432667448,-500.0,0.00023561,2]
[327755737,1716432667458,-500.0,0.00023561,2]
[327755738,1716432667467,-500.0,0.00023561,2]
[327755739,1716432667477,-500.0,0.00023561,2]
[327755740,1716432667486,-500.0,0.00023561,2]
[327755741,1716432667496,-500.0,0.00023561,2]
[327755742,1716432667506,-500.0,0.00023561,2]
[327755743,1716432667518,-500.0,0.00023561,2]
[327755744,1716432667531,-1524.72,0.00023561,2]
[327755745,1716432667541,-500.0,0.00023561,2]
[327755746,1716432667550,-500.0,0.00023561,2]
[327755747,1716432667560,-369.49873263,0.00023561,2]
[327755748,1716432667569,-500.0,0.00023561,2]
[327755749,1716432667578,-346.96877686,0.00023561,2]
[327755750,1716432667587,-262.56,0.00023561,2]
[327755751,1716432667597,-500.0,0.00023561,2]
[327755752,1716432667608,-500.0,0.00023561,2]
[327755753,1716432667618,-500.0,0.00023561,2]
[327755754,1716432667627,-500.0,0.00023561,2]
[327755755,1716432667636,-500.0,0.00023561,2]
[327755756,1716432667646,-500.0,0.00023561,2]
[327755757,1716432667655,-500.0,0.00023561,2]
[327755758,1716432667665,-500.0,0.00023561,2]
[327755759,1716432667675,-351.79123893,0.00023561,2]
[327755760,1716432667685,-500.0,0.00023561,2]
[327755761,1716432667694,-500.0,0.00023561,2]
[327755762,1716432667704,-500.0,0.00023561,2]
[327755763,1716432667713,-500.0,0.00023561,2]
[327755764,1716432667722,-215.35698413,0.00023561,2]
[327755765,1716432667732,-500.0,0.00023561,2]
[327755766,1716432667743,-500.0,0.00023561,2]
[327755767,1716432667753,-500.0,0.00023561,2]
[327755768,1716432667765,-500.0,0.00023561,2]
[327755769,1716432667774,-500.0,0.00023561,2]
[327755770,1716432667783,-500.0,0.00023561,2]
[327755771,1716432667793,-500.0,0.00023561,2]
[327755772,1716432667802,-927.84,0.00023561,2]
[327755773,1716432667811,-642.52,0.00023561,2]
[327755774,1716432667820,-500.0,0.00023561,2]
[327755775,1716432667830,-817.98,0.00023561,2]
[327755776,1716432667840,-500.0,0.00023561,2]
[327755777,1716432667850,-500.0,0.00023561,2]
[327755778,1716432667920,-629.88720348,0.00023561,2]
[327755779,1716432667930,-552.1,0.00023561,2]
[327755780,1716432667939,-1577.19,0.00023561,2]
[327755781,1716432667949,-500.0,0.00023561,2]
[327755782,1716432667959,-500.0,0.00023561,2]
[327755783,1716432667970,-500.0,0.00023561,2]
[327755784,1716432667979,-1189.63,0.00023561,2]
[327755785,1716432667989,-706.04,0.00023561,2]
[327755786,1716432668000,-500.0,0.00023561,2]
[327755787,1716432668009,-1375.34,0.00023561,2]
[327755788,1716432668022,-681.11,0.00023561,2]
[327755789,1716432668030,-500.0,0.00023561,2]
[327755790,1716432668039,-2368.11,0.00023561,2]
[327755791,1716432668049,-500.0,0.00023561,2]
[327755792,1716432668058,-545.65,0.00023561,2]
[327755793,1716432668067,-553.59,0.00023561,2]
[327755794,1716432668076,-500.0,0.00023561,2]
[327755795,1716432668086,-500.0,0.00023561,2]
[327755796,1716432668095,-603.91,0.00023561,2]
[327755797,1716432668104,-850.66,0.00023561,2]
[327755798,1716432668114,-1474.23,0.00023561,2]
[327755799,1716432668123,-151.13677212,0.00023561,2]
[327755800,1716432668132,-9892.35,0.00023561,2]
[327755801,1716432668141,-631.25,0.00023561,2]
[327755802,1716432668150,-1819.25,0.00023561,2]
[327755803,1716432668160,-500.0,0.00023561,2]
[327755804,1716432668169,-500.0,0.00023561,2]
[327755805,1716432668179,-510.74,0.00023561,2]
[327755806,1716432668188,-180.89510932,0.00023561,2]
[327755807,1716432668198,-500.0,0.00023561,2]
[327755808,1716432668207,-500.0,0.00023561,2]
[327755809,1716432668217,-500.0,0.00023561,2]
[327755810,1716432668226,-755.13,0.00023561,2]
[327755811,1716432668235,-507.14,0.00023561,2]
[327755812,1716432668244,-3419.56,0.00023561,2]
[327755813,1716432668254,-500.0,0.00023561,2]
[327755814,1716432668266,-644.53,0.00023561,2]
[327755815,1716432668276,-500.0,0.00023561,2]
[327755816,1716432668286,-618.49,0.00023561,2]
[327755817,1716432668295,-639.58,0.00023561,2]
[327755818,1716432668304,-5605.18,0.00023561,2]
[327755819,1716432668314,-500.0,0.00023561,2]
[327755820,1716432668324,-3848.47,0.00023561,2]
[327755821,1716432668334,-348.43492339,0.00023561,2]
[327755822,1716432668343,-500.0,0.00023561,2]
[327755823,1716432668353,-500.0,0.00023561,2]
[327755824,1716432668363,-500.0,0.00023561,2]
[327755825,1716432668372,-972.37,0.00023561,2]
[327755826,1716432668382,-500.0,0.00023561,2]
[327755827,1716432668391,-552.38,0.00023561,2]
[327755828,1716432668401,-500.0,0.00023561,2]
[327755829,1716432668411,-705.43,0.00023561,2]
[327755830,1716432668420,-4365.07,0.00023561,2]
[327755831,1716432668430,-500.0,0.00023561,2]
[327755832,1716432668439,-500.0,0.00023561,2]
[327755833,1716432668449,-1949.72,0.00023561,2]
[327755834,1716432668458,-500.0,0.00023561,2]
[327755835,1716432668468,-500.0,0.00023561,2]
[327755836,1716432668477,-500.0,0.00023561,2]
[327755837,1716432668487,-500.0,0.00023561,2]
[327755838,1716432668496,-836.28,0.00023561,2]
[327755839,1716432668506,-1217.93,0.00023561,2]
[327755840,1716432668519,-500.0,0.00023561,2]
[327755841,1716432668529,-500.0,0.00023561,2]
[327755842,1716432668538,-651.01,0.00023561,2]
[327755843,1716432668548,-500.0,0.00023561,2]
[327755844,1716432668557,-260.96933644,0.00023561,2]
[327755845,1716432668566,-500.0,0.00023561,2]
[327755846,1716432668576,-818.52,0.00023561,2]
[327755847,1716432668586,-500.0,0.00023561,2]
[327755848,1716432668595,-500.0,0.00023561,2]
[327755849,1716432668606,-500.0,0.00023561,2]
[327755850,1716432668617,-860.87,0.00023561,2]
[327755851,1716432668626,-329.60999459,0.00023561,2]
[327755852,1716432668636,-1049.77,0.00023561,2]
[327755853,1716432668646,-667.48,0.00023561,2]
[327755854,1716432668656,-500.0,0.00023561,2]
[327755855,1716432668665,-858.38,0.00023561,2]
[327755856,1716432668675,-500.0,0.00023561,2]
[327755857,1716432668684,-569.63,0.00023561,2]
[327755858,1716432668694,-500.0,0.00023561,2]
[327755859,1716432668704,-500.0,0.00023561,2]
[327755860,1716432668713,-500.0,0.00023561,2]
[327755861,1716432668723,-668.87,0.00023561,2]
[327755862,1716432668732,-1035.81,0.00023561,2]
[327755863,1716432668741,-1426.39,0.00023561,2]
[327755864,1716432668751,-991.74,0.00023561,2]
[327755865,1716432668761,-500.0,0.00023561,2]
[327755866,1716432668771,-500.0,0.00023561,2]
[327755867,1716432668780,-1283.32,0.00023561,2]
[327755868,1716432668790,-500.0,0.00023561,2]
[327755869,1716432668800,-500.0,0.00023561,2]
[327755870,1716432668809,-500.0,0.00023561,2]
[327755871,1716432668818,-2650.38,0.00023561,2]
[327755872,1716432668828,-719.97,0.00023561,2]
[327755873,1716432668837,-3769.04,0.00023561,2]
[327755874,1716432668846,-796.14,0.00023561,2]
[327755875,1716432668856,-372.03931068,0.00023561,2]
[327755876,1716432668865,-500.0,0.00023561,2]
[327755877,1716432668874,-606.35,0.00023561,2]
[327755878,1716432668884,-657.85,0.00023561,2]
[327755879,1716432668894,-500.0,0.00023561,2]
[327755880,1716432668904,-1868.32,0.00023561,2]
[327755881,1716432668914,-667.33,0.00023561,2]
[327755882,1716432668923,-550.28,0.00023561,2]
[327755883,1716432668932,-508.08,0.00023561,2]
[327755884,1716432668941,-500.0,0.00023561,2]
[327755885,1716432668950,-500.0,0.00023561,2]
[327755886,1716432668960,-1164.2,0.00023561,2]
[327755887,1716432668969,-500.0,0.00023561,2]
[327755888,1716432668978,-705.51,0.00023561,2]
[327755889,1716432668988,-500.0,0.00023561,2]
[327755890,1716432668999,-500.0,0.00023561,2]
[327755891,1716432669008,-500.0,0.00023561,2]
[327755892,1716432669020,-512.21,0.00023561,2]
[327755893,1716432669030,-500.0,0.00023561,2]
[327755894,1716432669039,-2362.28,0.00023561,2]
[327755895,1716432669049,-330.89808765,0.00023561,2]
[327755896,1716432669058,-500.0,0.00023561,2]
[327755897,1716432669068,-776.78,0.00023561,2]
[327755898,1716432669078,-500.0,0.00023561,2]
[327755899,1716432669088,-794.05,0.00023561,2]
[327755900,1716432669097,-509.63,0.00023561,2]
[327755901,1716432669107,-500.0,0.00023561,2]
[327755902,1716432669116,-521.29,0.00023561,2]
[327755903,1716432669126,-809.18,0.00023561,2]
[327755904,1716432669135,-1435.08,0.00023561,2]
[327755905,1716432669144,-625.57,0.00023561,2]
[327755906,1716432669154,-734.15,0.00023561,2]